bitfinex/quotes_ETHUSD_20240821
["timestamp","ask_amount","ask_price","bid_price","bid_amount"]
[1724205563386,0.1249995,2591.3,2591.0,3.55]
[1724205563596,0.1249995,2591.3,2591.1,2.4679]
[1724205563789,0.1249995,2591.3,2591.2,0.55]
[1724205563994,0.1249995,2591.3,2591.2,4.58]
[1724205564194,0.1249995,2591.3,2591.2,1.60979]
[1724205564492,0.1249995,2591.3,2591.2,0.55]
[1724205564694,0.1249995,2591.3,2591.1,0.55]
[1724205565530,0.1249995,2591.3,2591.0,3.55]
[1724205566895,2.3942995,2591.3,2591.0,3.55]
[1724205567099,2.3942995,2591.3,2591.0,0.55]
[1724205567344,2.3942995,2591.3,2590.8,0.55]
[1724205567548,2.3942995,2591.3,2590.9,0.355]
[1724205567750,2.3942995,2591.3,2591.0,0.55]
[1724205568101,2.3942995,2591.3,2590.7,3.0]
[1724205568296,2.3942995,2591.3,2590.5,7.736]
[1724205568297,2.3942995,2591.3,2590.6,3.0]
[1724205569936,2.3942995,2591.3,2590.7,0.55]
[1724205570337,2.3942995,2591.3,2590.7,1.6786]
[1724205570531,2.3942995,2591.3,2590.7,0.55]
[1724205574980,0.22173131,2591.2,2590.7,0.55]
[1724205575292,2.3942995,2591.3,2590.7,0.55]
[1724205575649,0.22145078,2591.2,2590.7,0.55]
[1724205575843,2.4628,2591.1,2590.7,0.55]
[1724205576187,0.22145078,2591.0,2590.7,0.55]
[1724205576545,2.4628,2591.1,2590.7,0.55]
[1724205579252,0.22145078,2591.0,2590.7,0.55]
[1724205580483,2.3238,2590.9,2590.6,3.0]
[1724205580680,2.57832508,2590.9,2590.2,3.0]
[1724205580845,0.22145078,2590.8,2590.2,3.55]
[1724205581193,2.3238,2590.7,2590.2,3.55]
[1724205581563,2.3238,2591.1,2590.4,4.03]
[1724205581894,2.3238,2591.1,2590.5,3.55]
[1724205582062,0.22145078,2591.0,2590.5,3.55]
[1724205582517,0.22145078,2591.0,2590.5,4.53803]
[1724205583234,0.22145078,2591.0,2590.5,3.55]
[1724205583557,2.4438,2590.9,2590.5,3.55]
[1724205583758,2.4438,2590.9,2590.5,0.55]
[1724205583964,2.4438,2590.9,2590.2,3.0]
[1724205583965,0.2210487,2590.8,2590.3,0.55]
[1724205584314,2.4438,2590.7,2590.3,0.55]
[1724205585131,2.4438,2590.7,2590.3,1.308]
[1724205588617,0.22081491,2590.6,2590.3,1.308]
[1724205589237,4.46334357,2591.1,2590.3,1.308]
[1724205589434,0.22084297,2591.0,2590.3,1.308]
[1724205590173,0.22084297,2591.0,2590.4,4.03]
[1724205590354,0.22084297,2591.0,2590.5,4.0838]
[1724205595365,0.22084297,2591.0,2590.6,7.736]
[1724205595669,0.22084297,2591.0,2590.7,0.55]
[1724205597283,0.22084297,2591.0,2590.7,4.58]
[1724205597508,2.4658995,2591.3,2590.8,3.0]
[1724205597804,2.4658995,2591.3,2591.2,4.03]
[1724205600714,2.4658995,2591.3,2590.9,5.338]
[1724205600904,2.4658995,2591.3,2591.0,3.0]
[1724205601122,0.1249995,2591.3,2591.0,3.0]
[1724205601302,0.1249995,2591.3,2591.1,1.3838]
[1724205601794,0.1249995,2591.3,2591.2,4.03]
[1724205602006,0.1249995,2591.3,2591.2,4.58]
[1724205602350,0.1249995,2591.3,2591.2,7.58]
[1724205602869,2.5397995,2591.3,2591.2,7.58]
[1724205603898,2.5397995,2591.3,2590.9,4.03]
[1724205604069,2.4148,2591.2,2591.0,3.0]
[1724205604268,2.4148,2591.1,2590.7,15.146]
[1724205604570,2.4148,2591.1,2590.7,7.736]
[1724205604912,2.4148,2590.7,2590.1,12.27]
[1724205605111,2.4148,2590.7,2590.0,7.41]
[1724205605316,2.4148,2590.7,2590.1,0.3875]
[1724205605495,2.4148,2590.7,2590.1,6.8217]
[1724205605906,2.4148,2590.7,2590.2,1.42317]
[1724205606099,2.4148,2590.7,2590.2,4.42317]
[1724205606477,4.43915278,2591.0,2590.4,4.03]
[1724205606677,2.4148,2591.0,2590.5,3.0]
[1724205606893,2.4148,2591.0,2590.6,0.55]
[1724205607210,2.02435278,2591.0,2590.6,0.55]
[1724205607428,2.02562241,2590.9,2590.6,0.55]
[1724205607570,2.4148,2590.8,2590.6,0.55]
[1724205608012,2.4225,2590.9,2590.6,0.55]
[1724205608829,4.89294941,2590.9,2590.6,0.55]
[1724205609120,4.44813583,2590.8,2590.6,0.55]
[1724205609322,2.4225,2590.8,2590.6,0.55]
[1724205609531,2.4225,2590.8,2590.5,3.0]
[1724205609532,2.02563583,2590.8,2590.5,3.0]
[1724205609707,2.4328,2590.5,2590.1,3.0]
[1724205609910,2.4328,2590.5,2590.0,7.41]
[1724205609911,4.45843583,2590.5,2590.0,7.41]
[1724205610115,2.4328,2590.3,2589.7,15.146]
[1724205610279,4.92227941,2590.2,2589.7,7.41]
[1724205610477,2.4508,2590.0,2589.7,7.41]
[1724205610672,2.4508,2590.0,2589.3,15.146]
[1724205610871,2.4508,2590.0,2589.5,4.03]
[1724205611910,4.47643583,2590.3,2589.8,4.03]
[1724205612234,2.02520128,2590.7,2590.1,4.03]
[1724205612440,2.4508,2590.8,2590.3,0.3875]
[1724205612923,2.4508,2590.8,2590.4,0.55]
[1724205613427,2.4508,2590.8,2590.4,0.94375]
[1724205613573,2.4508,2590.8,2590.4,0.55]
[1724205613773,2.4508,2590.8,2590.2,3.0]
[1724205613774,2.4508,2590.7,2590.2,3.0]
[1724205614130,4.47600128,2590.6,2590.0,3.0]
[1724205614310,4.47600128,2590.6,2590.1,0.55]
[1724205614677,2.4508,2590.5,2590.1,0.55]
[1724205615222,4.47600128,2590.5,2590.0,0.55]
[1724205615516,2.4508,2590.5,2590.0,0.55]
[1724205615672,2.02520128,2590.6,2590.0,1.4189]
[1724205615876,4.47600128,2590.9,2590.0,1.4189]
[1724205616342,2.4508,2590.9,2590.3,4.03]
[1724205616497,2.4508,2590.9,2590.4,0.55]
[1724205616933,2.4508,2590.9,2590.4,3.55]
[1724205617243,2.4508,2590.9,2590.4,4.22914335]
[1724205617590,0.21345215,2590.8,2590.4,4.22914335]
[1724205620200,2.3937,2590.7,2590.4,3.55]
[1724205620400,2.3937,2590.7,2590.1,3.0]
[1724205620401,2.60773381,2590.7,2590.1,3.0]
[1724205620640,2.60773381,2590.7,2590.0,0.8689]
[1724205620641,3.07092346,2590.7,2590.0,3.8689]
[1724205620822,2.3937,2590.6,2590.0,3.8689]
[1724205621027,2.60771506,2590.6,2590.0,3.8689]
[1724205621337,2.3937,2590.4,2589.4,4.03]
[1724205621557,2.3937,2590.4,2589.4,11.44]
[1724205621708,2.3937,2590.2,2589.4,11.44]
[1724205622463,0.2139494,2590.1,2589.4,11.44]
[1724205623313,0.2139494,2590.1,2589.5,3.0]
[1724205623648,2.3937,2590.2,2589.6,1.444]
[1724205623941,2.3937,2590.2,2589.7,0.55]
[1724205624647,2.3937,2590.2,2589.7,4.58]
[1724205624943,2.3937,2590.2,2589.8,3.0]
[1724205625143,2.3937,2590.2,2589.9,0.55]
[1724205625640,2.3937,2590.2,2589.9,1.363]
[1724205625853,2.3937,2590.2,2589.9,0.55]
[1724205626001,2.3937,2590.2,2589.7,3.0]
[1724205626353,2.3937,2590.2,2589.4,7.41]
[1724205626354,2.2731,2590.1,2589.4,7.41]
[1724205626494,0.64316404,2590.0,2589.4,7.41]
[1724205626700,2.4478,2589.9,2589.4,7.41]
[1724205627149,0.21348033,2589.8,2589.4,7.41]
[1724205627315,2.4478,2589.7,2589.1,19.68]
[1724205627542,2.4478,2589.7,2589.2,1.968]
[1724205627957,2.4478,2589.7,2589.2,4.968]
[1724205628474,2.4478,2589.7,2589.3,0.55]
[1724205628644,2.4478,2589.7,2589.3,3.0]
[1724205628976,2.4478,2589.7,2589.1,19.68]
[1724205629128,2.02373706,2589.9,2589.1,19.68]
[1724205629129,2.68048,2589.6,2589.1,19.68]
[1724205629328,2.4357,2589.6,2589.1,19.68]
[1724205630472,2.4357,2589.6,2589.2,3.07724529]
[1724205630958,2.4357,2589.6,2589.3,0.55]
[1724205631162,2.4357,2589.6,2589.3,0.62723602]
[1724205631366,2.4068,2589.9,2589.4,0.3627236]
[1724205631530,2.4068,2589.9,2589.3,0.62723602]
[1724205631531,2.4068,2589.9,2589.5,0.62722691]
[1724205631735,2.4068,2589.9,2589.3,0.55]
[1724205631736,2.4068,2590.3,2589.4,7.736]
[1724205631959,2.4068,2590.3,2589.5,3.55]
[1724205635754,2.4068,2590.7,2589.6,0.07721387]
[1724205635940,2.4068,2590.7,2589.7,0.55]
[1724205637036,2.4068,2590.7,2589.8,0.07721623]
[1724205637282,2.4068,2590.7,2589.8,3.0]
[1724205637496,2.4068,2590.7,2589.9,0.55]
[1724205637785,2.4068,2590.7,2590.0,0.355]
[1724205637989,2.4068,2590.7,2590.1,0.55]
[1724205639477,2.3289,2591.1,2590.1,0.55]
[1724205639709,2.3289,2591.1,2590.1,0.62719109]
[1724205640024,2.3289,2591.1,2590.2,1.17181911]
[1724205640208,2.3289,2591.1,2590.3,0.55]
[1724205640416,0.1249995,2591.3,2590.4,2.4115]
[1724205640616,0.1249995,2591.3,2590.5,0.55]
[1724205640770,0.1249995,2591.3,2590.5,3.55]
[1724205640972,0.1249995,2591.3,2590.6,0.89615]
[1724205641314,0.1249995,2591.3,2590.7,0.55]
[1724205641615,0.21003856,2591.2,2590.7,0.55]
[1724205641967,0.1249995,2591.3,2590.7,0.55]
[1724205642490,0.21003856,2591.2,2590.7,0.55]
[1724205642700,0.21003856,2591.2,2590.7,0.994615]
[1724205642873,0.1249995,2591.3,2590.7,0.994615]
[1724205643299,0.21003856,2591.2,2590.7,0.55]
[1724205643612,2.4933,2591.1,2590.5,3.0]
[1724205643784,2.4933,2591.1,2590.4,10.41]
[1724205645187,2.4933,2591.1,2590.4,12.6992]
[1724205645733,2.4933,2591.1,2590.5,0.62719134]
[1724205646028,2.4933,2591.1,2590.6,1.33263913]
[1724205646171,2.4933,2591.1,2590.7,0.55]
[1724205646372,0.2099728,2591.0,2590.7,0.55]
[1724205647520,0.2099728,2591.0,2590.5,0.55]
[1724205647899,2.4933,2591.1,2590.5,0.55]
[1724205648099,2.4933,2591.1,2590.6,1.096]
[1724205648297,2.4933,2591.1,2590.7,0.55]
[1724205648700,0.2099728,2591.0,2590.7,0.55]
[1724205648900,2.5521995,2591.3,2590.7,0.55]
[1724205649217,0.2099728,2591.2,2590.7,0.55]
[1724205650038,2.4272,2591.1,2590.7,0.55]
[1724205650421,2.4272,2591.1,2590.6,0.55]
[1724205650617,2.4272,2591.1,2590.5,3.0]
[1724205650839,2.68241995,2591.1,2590.5,3.0]
[1724205652034,2.68241995,2591.1,2590.6,0.55]
[1724205652350,2.68241995,2591.1,2590.4,7.41]
[1724205652351,0.2099728,2591.0,2590.4,7.41]
[1724205652676,2.2576,2590.9,2590.4,7.41]
[1724205652976,2.2576,2590.9,2590.0,12.116]
[1724205652977,2.52987928,2590.9,2590.0,12.116]
[1724205653178,0.2099728,2590.8,2590.0,12.116]
[1724205653476,2.2576,2590.7,2590.0,8.091]
[1724205653622,2.2576,2590.7,2590.1,3.0]
[1724205654346,2.51058793,2590.7,2590.1,3.0]
[1724205654670,0.2099728,2590.6,2590.1,3.0]
[1724205654842,0.2099728,2590.6,2590.2,0.55]
[1724205655234,2.51058793,2590.7,2590.2,0.55]
[1724205655433,2.2576,2590.7,2590.2,0.55]
[1724205655633,0.2099728,2590.6,2590.2,2.8492]
[1724205655830,0.2099728,2590.6,2590.5,4.025]
[1724205656077,2.4732,2591.1,2590.5,3.55]
[1724205656376,2.4732,2591.1,2590.6,0.905]
[1724205656541,0.20961577,2591.0,2590.6,0.905]
[1724205656731,0.20961577,2591.0,2590.6,0.55]
[1724205657074,0.20961577,2591.0,2590.4,0.55]
[1724205659038,0.20961577,2591.0,2590.5,0.07719204]
[1724205659240,0.20961577,2591.0,2590.6,0.55]
[1724205659452,0.20961577,2591.0,2590.7,0.07718879]
[1724205659662,0.20961577,2591.0,2590.8,0.55]
[1724205659977,0.20997276,2590.9,2590.8,0.55]
[1724205660133,2.4732,2591.1,2590.6,0.55]
[1724205660669,2.4732,2591.1,2590.7,0.39514692]
[1724205660871,2.4732,2591.1,2590.8,0.55]
[1724205661072,2.4732,2591.1,2590.8,0.62718875]
[1724205661400,2.4732,2591.1,2590.8,0.62718815]
[1724205661744,0.1249995,2591.3,2590.9,0.07718815]
[1724205661745,2.5348995,2591.3,2590.9,0.07718815]
[1724205661951,0.21009487,2591.2,2591.0,0.55]
[1724205662255,0.1249995,2591.3,2590.9,5.4746]
[1724205662472,0.1249995,2591.3,2591.0,0.55]
[1724205662684,0.1249995,2591.3,2591.1,4.025]
[1724205662969,0.1249995,2591.3,2591.2,4.0075]
[1724205663835,0.1249995,2591.3,2591.2,11.82067191]
[1724205665280,0.1249995,2591.3,2591.2,11.7435]
[1724205665482,0.1249995,2591.3,2591.2,12.131]
[1724205667067,2.01512475,2592.9,2591.4,0.3875]
[1724205667068,2.3344,2592.8,2591.4,0.3875]
[1724205667232,2.3344,2592.8,2592.1,4.025]
[1724205667436,2.3344,2592.8,2592.2,0.55]
[1724205667637,2.3344,2592.8,2592.2,3.55]
[1724205669560,2.3344,2592.8,2592.3,0.07714819]
[1724205669890,2.82041946,2593.6,2592.4,0.55]
[1724205669891,1.34806223,2593.5,2592.4,0.55]
[1724205670194,0.20568946,2593.4,2592.4,0.55]
[1724205671396,0.20568946,2593.4,2592.7,4.025]
[1724205671613,0.20568946,2593.4,2592.8,3.55]
[1724205671822,0.40396333,2594.3,2592.8,3.55]
[1724205672112,2.81728155,2594.3,2592.8,3.55]
[1724205672278,0.19940935,2593.8,2592.8,3.55]
[1724205672999,2.2623,2593.7,2592.8,3.55]
[1724205673171,2.2623,2593.5,2592.8,3.55]
[1724205673493,0.19962635,2593.4,2592.8,3.55]
[1724205676608,2.33,2593.3,2592.8,3.55]
[1724205676785,2.33,2593.3,2592.3,0.3875]
[1724205676786,2.33,2593.3,2592.3,3.3875]
[1724205676984,4.025,2594.1,2592.3,3.3875]
[1724205676985,2.58296264,2593.2,2592.3,3.3875]
[1724205677184,2.33,2593.2,2592.3,3.3875]
[1724205678013,2.33,2593.2,2592.2,7.4125]
[1724205678014,0.19962635,2593.1,2592.2,7.4125]
[1724205678214,0.19962635,2593.1,2592.3,0.55]
[1724205678390,2.33,2593.2,2592.3,2.11985]
[1724205678799,2.33,2593.2,2592.5,4.025]
[1724205679006,2.33,2593.2,2592.6,3.55]
[1724205680206,2.4859,2593.8,2592.6,3.55]
[1724205680427,0.1249995,2593.9,2592.7,0.7575]
[1724205680428,2.4859,2593.6,2592.7,0.7575]
[1724205680600,2.4859,2593.6,2592.8,0.55]
[1724205680803,0.1249995,2593.9,2592.6,3.55]
[1724205680804,2.68242884,2593.5,2592.6,3.55]
[1724205682814,2.4859,2593.5,2592.6,3.55]
[1724205687332,2.4859,2593.5,2592.6,3.0]
[1724205687502,2.66519,2593.4,2592.6,3.0]
[1724205687701,2.66519,2593.4,2592.5,7.41]
[1724205688111,2.61396832,2593.3,2592.5,7.41]
[1724205688307,2.61396832,2593.3,2592.1,15.146]
[1724205689341,2.61396832,2593.3,2592.2,0.55]
[1724205689524,2.53725583,2593.2,2592.3,1.5696]
[1724205689855,0.19704767,2593.1,2592.4,0.55]
[1724205690204,2.53725583,2593.2,2592.4,0.55]
[1724205690409,2.3698,2593.0,2592.4,0.55]
[1724205690605,0.19704767,2593.1,2592.5,4.025]
[1724205690837,2.3698,2593.3,2592.6,3.55]
[1724205691412,2.3698,2593.3,2592.7,0.07712643]
[1724205691630,2.3698,2593.3,2592.8,0.55]
[1724205691829,2.3698,2593.3,2592.8,0.41]
[1724205692075,2.3698,2593.3,2592.9,0.55]
[1724205696557,2.4456,2593.6,2592.9,0.55]
[1724205696755,0.19750977,2593.5,2592.9,0.55]
[1724205697060,0.19750977,2593.5,2592.7,0.55]
[1724205697264,0.19750977,2593.5,2592.7,1.3075]
[1724205697556,2.4456,2593.6,2592.8,0.07712746]
[1724205697761,2.4456,2593.6,2592.9,0.55]
[1724205698006,2.4456,2593.6,2592.7,1.3075]
[1724205699193,2.4456,2593.6,2592.8,4.025]
[1724205699505,2.4456,2593.6,2592.9,4.08325]
[1724205700329,2.4456,2593.6,2592.9,3.55]
[1724205700832,2.4456,2593.6,2593.0,0.07712242]
[1724205701122,2.4456,2593.6,2593.1,0.55]
[1724205701619,0.1975192,2593.5,2593.1,0.55]
[1724205701843,0.1975192,2593.5,2593.0,0.55]
[1724205701984,0.46183112,2593.5,2593.0,0.55]
[1724205702169,0.26431192,2593.5,2592.8,0.55]
[1724205702430,0.19764178,2593.4,2592.8,0.55]
[1724205702719,2.4457,2593.3,2592.8,0.55]
[1724205702918,2.73646537,2593.3,2592.8,0.55]
[1724205703158,2.73646537,2593.3,2592.3,21.2496]
[1724205703368,2.73646537,2593.3,2592.3,7.41]
[1724205703731,2.4457,2593.1,2592.3,7.41]
[1724205704063,0.29076537,2593.3,2592.3,7.41]
[1724205704064,2.4457,2592.9,2592.3,7.41]
[1724205704715,0.19698164,2592.8,2592.3,7.41]
[1724205704916,0.19698164,2592.8,2592.3,8.151]
[1724205705158,2.4457,2592.9,2592.3,8.151]
[1724205705665,2.4457,2592.9,2592.4,3.0]
[1724205706038,0.19670808,2592.8,2592.4,3.0]
[1724205709253,0.19670808,2592.8,2592.5,0.00467696]
[1724205710238,0.66300635,2592.8,2592.5,0.00467696]
[1724205710445,2.68358102,2592.8,2592.5,0.00467696]
[1724205710648,2.4634,2592.7,2592.5,0.00467696]
[1724205710849,4.68062615,2592.7,2592.5,0.00467696]
[1724205711391,2.4634,2592.6,2592.5,0.00467696]
[1724205711541,3.01850394,2592.6,2592.5,0.00467696]
[1724205711966,3.21515542,2592.6,2592.5,0.00467696]
[1724205712171,2.66005148,2592.6,2592.5,0.00467696]
[1724205712537,4.68303962,2592.6,2592.5,0.00467696]
[1724205713381,4.68307546,2592.6,2592.5,0.00467696]
[1724205713678,2.66005148,2592.6,2592.5,0.00467696]
[1724205714971,4.68275898,2592.6,2592.5,0.00467696]
[1724205715507,5.15103488,2592.6,2592.5,0.00467696]
[1724205715778,2.66005148,2592.6,2592.5,0.00467696]
[1724205715982,4.68270257,2592.6,2592.5,0.00467696]
[1724205716187,2.66005148,2592.6,2592.5,0.00467696]
[1724205719398,0.19665148,2592.6,2592.5,0.00467696]
[1724205719962,2.02223344,2592.8,2592.5,0.00467696]
[1724205720188,0.19576462,2592.6,2592.5,0.00467696]
[1724205720350,2.02223344,2592.8,2592.5,0.00467696]
[1724205720695,4.47803344,2592.9,2592.5,0.00467696]
[1724205720852,0.19583067,2592.7,2592.5,0.00467696]
[1724205721049,2.02223344,2593.0,2592.5,0.00467696]
[1724205721267,0.19583067,2592.6,2592.5,0.00467696]
[1724205722297,2.02156764,2593.0,2592.5,0.00467696]
[1724205722463,0.19583067,2592.6,2592.5,0.00467696]
[1724205723518,4.71768117,2593.2,2592.5,0.00467696]
[1724205723519,2.02156764,2592.9,2592.5,0.00467696]
[1724205723660,0.19583067,2592.6,2592.5,0.00467696]
[1724205723862,2.02156764,2592.9,2592.5,0.00467696]
[1724205724060,2.42588117,2593.2,2592.5,0.55467696]
[1724205724061,0.19583067,2592.6,2592.5,0.55467696]
[1724205724262,2.02156764,2593.2,2592.5,4.59654466]
[1724205724763,0.19600994,2593.1,2592.5,3.55467696]
[1724205724976,4.52036764,2593.0,2592.5,0.55467696]
[1724205725276,0.19618919,2592.9,2592.6,3.0]
[1724205725471,0.19618919,2592.9,2592.5,0.00467696]
[1724205725878,2.21775683,2592.9,2592.5,0.00467696]
[1724205726492,2.21753421,2592.9,2592.5,0.00467696]
[1724205726831,0.19503202,2592.9,2592.5,0.00467696]
[1724205727026,0.19503202,2592.9,2592.5,0.36014466]
[1724205727630,2.02134502,2593.1,2592.6,0.55]
[1724205727834,2.2162827,2593.0,2592.6,0.55]
[1724205728168,2.2162827,2593.0,2592.5,0.00467696]
[1724205728169,2.3726,2592.8,2592.5,0.00467696]
[1724205728491,4.39395584,2592.8,2592.5,0.00467696]
[1724205728686,0.19503202,2592.7,2592.5,0.00467696]
[1724205728991,4.39395584,2592.8,2592.5,0.00467696]
[1724205729327,0.19503202,2592.7,2592.5,0.00467696]
[1724205729839,0.19503202,2592.6,2592.5,0.00467696]
[1724205729993,2.46075142,2592.7,2592.5,0.00467696]
[1724205730339,0.19503202,2592.6,2592.5,0.00467696]
[1724205732699,2.3726,2592.8,2592.5,0.00467696]
[1724205732903,0.19222387,2592.6,2592.5,0.00467696]
[1724205733088,2.3131,2593.0,2592.5,0.00467696]
[1724205733343,0.19222387,2592.6,2592.5,0.00467696]
[1724205733939,2.02151551,2593.1,2592.5,0.00467696]
[1724205734143,4.33461551,2593.2,2592.5,0.00467696]
[1724205734355,0.19222387,2593.0,2592.5,0.00467696]
[1724205734565,4.33461551,2593.2,2592.5,0.00467696]
[1724205734792,0.19222387,2592.9,2592.5,0.00467696]
[1724205734968,2.02151551,2593.3,2592.6,2.4196]
[1724205735176,0.19222387,2592.8,2592.7,0.7924277]
[1724205735405,2.02151551,2593.3,2592.7,3.7924277]
[1724205735608,0.19222387,2592.8,2592.7,3.7924277]
[1724205735758,2.02151551,2593.3,2592.7,3.7924277]
[1724205736291,0.19222387,2593.2,2592.8,10.75300277]
[1724205736458,0.19222387,2593.2,2592.9,3.55]
[1724205736658,2.02103598,2593.6,2592.9,3.62711962]
[1724205736860,0.19222387,2593.1,2592.9,3.62711962]
[1724205737066,2.02103598,2593.7,2592.9,7.65211962]
[1724205737260,4.49173598,2593.8,2593.0,1.84051224]
[1724205737591,0.1249995,2593.9,2593.1,3.02291374]
[1724205737592,0.19222387,2593.6,2593.1,3.02291374]
[1724205737770,2.14539984,2593.9,2593.2,3.0]
[1724205737976,0.19222387,2593.5,2593.3,1.15229137]
[1724205738229,2.02040034,2593.8,2593.3,1.15229137]
[1724205738383,0.19222387,2593.4,2593.3,1.15229137]
[1724205738561,2.14539984,2593.9,2593.3,1.15229137]
[1724205738906,2.14539984,2593.9,2593.4,0.42294063]
[1724205739111,2.02040034,2593.8,2593.3,1.15229137]
[1724205739309,0.1249995,2593.9,2593.3,1.15229137]
[1724205743811,0.1249995,2593.9,2593.4,2.4589]
[1724205744012,0.1249995,2593.9,2593.5,0.55]
[1724205744203,0.1249995,2593.9,2593.6,0.60089]
[1724205744556,0.1249995,2593.9,2593.7,0.55]
[1724205744849,0.19346985,2593.8,2593.7,0.55]
[1724205748060,0.1249995,2593.9,2593.7,0.55]
[1724205748304,0.1249995,2593.9,2593.8,0.07709791]
[1724205748467,0.1249995,2593.9,2593.8,2.99309791]
[1724205748630,0.1249995,2593.9,2593.8,6.33039879]
[1724205748828,0.1249995,2593.9,2593.8,3.96439879]
[1724205749915,0.1249995,2593.9,2593.8,0.96439879]
[1724205750546,0.1249995,2593.9,2593.8,0.55]
[1724205750732,0.1249995,2593.9,2593.7,0.55]
[1724205752520,0.1249995,2593.9,2593.7,3.006]
[1724205752744,0.1249995,2593.9,2593.8,3.0]
[1724205753334,0.1249995,2593.9,2593.7,0.55]
[1724205754366,0.1249995,2593.9,2593.8,2.4937]
[1724205754530,2.3677,2595.1,2594.3,2.4937]
[1724205754730,2.3677,2595.1,2594.4,0.55]
[1724205754945,0.18894091,2595.0,2594.4,0.55]
[1724205755145,2.3677,2595.1,2594.4,3.55]
[1724205755361,2.3677,2595.1,2594.5,0.60437]
[1724205755662,2.3677,2595.1,2594.6,0.55]
[1724205756067,2.3177,2595.1,2594.6,0.55]
[1724205756268,0.18926239,2595.0,2594.6,0.55]
[1724205757017,0.18926239,2595.0,2594.6,0.965437]
[1724205757222,0.18926239,2595.0,2594.4,3.0]
[1724205757477,0.18926239,2595.0,2594.3,2.4937]
[1724205757478,2.01176661,2595.3,2594.3,3.0]
[1724205757627,0.18958379,2595.2,2594.3,3.0]
[1724205757975,0.40971883,2595.2,2594.3,3.0]
[1724205758538,0.18958379,2595.2,2594.3,5.2907]
[1724205758733,0.18958379,2595.2,2594.3,3.0]
[1724205758918,2.01176661,2595.3,2594.4,0.55]
[1724205759119,2.57407037,2595.1,2594.4,3.55]
[1724205759322,2.3846,2595.1,2594.3,3.0]
[1724205759602,0.18947037,2595.0,2594.3,3.0]
[1724205760124,0.18947037,2595.0,2594.4,0.55]
[1724205760319,0.18947037,2595.0,2594.4,1.6786]
[1724205760575,0.18947037,2595.0,2594.4,0.55]
[1724205761467,2.2752,2594.9,2594.3,3.0]
[1724205764414,2.55571365,2594.8,2594.1,3.0]
[1724205764727,2.3663,2594.7,2593.8,3.3649267]
[1724205765269,0.18941365,2594.6,2593.8,3.3649267]
[1724205766008,0.18941365,2594.6,2593.9,0.55]
[1724205766421,2.3663,2594.7,2593.9,0.55]
[1724205766719,0.18941365,2594.5,2593.9,0.55]
[1724205767015,2.3663,2594.7,2593.9,0.55]
[1724205767016,2.3663,2594.7,2594.0,0.39149267]
[1724205767236,0.18941365,2594.4,2594.0,0.39149267]
[1724205767537,2.3663,2594.7,2594.0,0.39149267]
[1724205767892,0.18941365,2594.6,2594.0,0.39149267]
[1724205768091,2.3663,2594.7,2594.0,0.39149267]
[1724205768644,0.18913003,2594.6,2594.0,0.39149267]
[1724205768805,2.3642,2594.5,2593.8,3.0]
[1724205769009,2.3642,2594.5,2593.6,7.74067696]
[1724205769010,2.55350971,2594.4,2593.6,7.74067696]
[1724205769206,2.01442382,2594.3,2593.6,0.00467696]
[1724205769517,2.01442382,2594.1,2593.6,0.00467696]
[1724205769716,2.01442382,2594.0,2593.6,0.00467696]
[1724205769917,4.44947435,2593.9,2593.6,0.00467696]
[1724205770127,2.62213406,2593.9,2593.6,0.00467696]
[1724205772220,4.63870841,2593.9,2593.6,0.00467696]
[1724205772414,2.62213406,2593.9,2593.6,0.00467696]
[1724205776181,4.90108747,2593.9,2593.6,0.00467696]
[1724205776342,2.2822,2593.7,2593.6,0.00467696]
[1724205776723,2.47095172,2593.7,2593.6,0.00467696]
[1724205777255,2.20549172,2593.7,2593.6,0.00467696]
[1724205777461,4.89103972,2593.7,2593.6,0.00467696]
[1724205777655,3.67112063,2593.7,2593.6,0.00467696]
[1724205777940,3.67112063,2593.7,2591.9,7.41]
[1724205777941,2.2822,2593.6,2591.9,7.41]
[1724205778144,2.2822,2592.9,2591.9,7.41]
[1724205778757,0.18857197,2592.8,2591.9,7.41]
[1724205779448,0.18857197,2592.8,2592.0,3.0]
[1724205779683,0.18857197,2592.8,2592.1,1.041]
[1724205780282,0.18857197,2592.8,2592.2,0.55]
[1724205782334,0.18857197,2592.8,2592.3,2.33394392]
[1724205782543,0.18857197,2592.8,2592.4,0.55]
[1724205782846,2.2582,2593.2,2592.4,3.55]
[1724205783049,0.18589397,2592.7,2592.5,0.66271429]
[1724205783248,2.2582,2593.2,2592.6,0.55]
[1724205783649,0.18607386,2593.1,2592.6,0.55]
[1724205786777,2.4538,2593.7,2592.7,2.3013]
[1724205786978,2.4538,2593.7,2592.8,0.83513]
[1724205787181,2.4538,2593.7,2592.8,3.9122568]
[1724205787182,0.18634837,2593.6,2592.8,3.9122568]
[1724205787495,0.18634837,2593.6,2592.8,3.83513]
[1724205787836,2.2941,2594.1,2593.0,4.025]
[1724205788040,2.2941,2594.1,2593.2,2.3646]
[1724205788041,0.1863957,2593.5,2593.2,2.3646]
[1724205788241,2.2941,2594.1,2593.2,2.3646]
[1724205788443,0.18669853,2593.4,2593.3,0.55]
[1724205788745,2.2941,2594.1,2593.3,4.18171]
[1724205788987,2.2941,2594.1,2593.3,4.25882245]
[1724205789285,0.18669853,2594.0,2593.3,4.25882245]
[1724205789468,0.18669853,2594.0,2593.4,7.736]
[1724205789689,3.02418899,2595.2,2593.6,2.3646]
[1724205789690,2.2941,2594.8,2593.6,2.3646]
[1724205789871,2.2941,2594.8,2593.7,1.14146]
[1724205789872,0.18708642,2593.9,2593.7,1.14146]
[1724205790186,2.2941,2594.8,2593.7,4.14146]
[1724205790341,2.2941,2594.8,2593.8,0.07708979]